Cogmind - Beta 11.1 @@@ ROGUE MODE // 2022.06.30 @ 17:24:00 Player: Jezoensis Result: Self-destructed Performance ------------- Evolutions (1) 500 Regions Visited (3) 600 Robots Destroyed (26) 130 Value Destroyed (630) 630 Prototype IDs (0) 0 Alien Tech Used (0) 0 Bonus (0) 0 TOTAL SCORE: 1860 Bonus ------- None Cogmind --------- Core Integrity 220/400 Matter 276/300 Energy 100/100 System Corruption 0% Temperature Cool (24) Movement Treading (240) Ox1 Location -9/Materials Parts ------- > --- POWER (1) -------- (None) > --- PROPULSION (3) --- Light Treads Aluminum Leg Wheel > --- UTILITY (3) ------ Large Storage Unit Visual Processing Unit > --- WEAPON (2) ------- Small Laser > --- INVENTORY (15) --- Compact Wheel High-capacity Storage Unit Improved Terrain Scanner Mining Laser Peak State ------------ > --- POWER ------------ Ion Engine > --- PROPULSION ------- Light Treads Wheel Wheel > --- UTILITY ---------- Large Storage Unit Improved Terrain Scanner Hacking Suite > --- WEAPON ----------- EM Pulse Gun Light Assault Rifle > --- INVENTORY -------- Ion Engine Light Treads Compact Wheel High-capacity Storage Unit Visual Processing Unit Propulsion Shielding Assault Rifle Light Assault Rifle Mining Laser [Rating: 14] Favorites ----------- Power Ion Engine Engine Ion Engine Propulsion Wheel Treads Light Treads Leg Aluminum Leg Wheel Wheel Utility Large Storage Unit Device Improved Terrain Scanner Storage Large Storage Unit Processor Visual Processing Unit Hackware Hacking Suite Protection Propulsion Shielding Weapon Light Assault Rifle Energy Gun EM Pulse Gun Ballistic Gun Light Assault Rifle Build | -11 -10 -10 -9 ------- Run | Scr Mat Min Mat Slots Evolved 2 | . . . 2 Power . | . . . . Propulsion 1 | . . . 1 Utility 1 | . . . 1 Weapon . | . . . . Parts Attached 28 | 8 9 . 11 Power 3 | 1 1 . 1 Engine 3 | 1 1 . 1 Core . | . . . . Reactor . | . . . . Propulsion 10 | 3 3 . 4 Treads 2 | . . . 2 Leg 1 | . . . 1 Wheel 7 | 3 3 . 1 Hover . | . . . . Flight . | . . . . Utility 8 | 2 3 . 3 Device 2 | 1 . . 1 Storage 3 | 1 2 . . Processor 1 | . . . 1 Hackware 1 | . 1 . . Protection 1 | . . . 1 Artifact . | . . . . Weapon 7 | 2 2 . 3 Energy Gun 2 | . 1 . 1 Energy Cannon . | . . . . Ballistic Gun 5 | 2 1 . 2 Ballistic Cannon . | . . . . Launcher . | . . . . Special Weapon . | . . . . Impact Weapon . | . . . . Slashing Weapon . | . . . . Piercing Weapon . | . . . . Special Melee Weapon . | . . . . Unidentified Prototypes . | . . . . Parts Lost 10 | . . . 10 Power 2 | . . . 2 Propulsion 2 | . . . 2 Utility 2 | . . . 2 Weapon 4 | . . . 4 Highest Loss Streak 7 | . . . 7 To Critical Strikes . | . . . . Average Slot Usage (%) 98 | . 100 100 95 Engine 13 | . 14 14 11 Treads 6 | . . . 19 Wheel 22 | . 28 28 12 Device 6 | . 11 . 1 Storage 13 | . 14 14 11 Processor 1 | . . . 6 Hackware 4 | . 2 14 4 Protection 1 | . . . 5 Energy Gun 8 | . 11 14 1 Ballistic Gun 17 | . 16 14 20 Naked Turns . | . . . . Heaviest Build 49 | 12 49 28 29 Greatest Support 40 | 26 26 20 40 Greatest Overweight (x) 1 | . 1 1 1 Average Overweight (x) . | . . 1 . Largest Inventory Capacity 20 | 8 20 15 15 Average Capacity 12 | 7 10 15 15 Most Carried 11 | 8 11 11 10 Average Carried 8 | 4 8 11 7 Final Capacity 15 | 8 15 15 15 Final Carried 11 | 8 11 11 4 Class Distribution -------------------- 55% | Mutant 44% | Scavenger-Mutant Dominant Class ---------------- Scavenger-Mutant | -10/Materials Scavenger-Mutant | -10/Mines Mutant | -9/Materials Resources | -11 -10 -10 -9 ----------- Run | Scr Mat Min Mat Matter Collected 612 | 301 103 . 208 Remotely . | . . . . Salvage Created 934 | 112 273 . 549 Parts 74 | 11 22 . 41 Haulers Intercepted . | . . . . Recyclers Shooed . | . . . . Parts Field Recycled . | . . . . Retrieved Matter . | . . . . Parts Self-Destructed . | . . . . Prevented . | . . . . Kills | -11 -10 -10 -9 ------- Run | Scr Mat Min Mat Combat Hostiles Destroyed 17 | . 5 . 12 Guns 17 | . 5 . 12 Classes Destroyed 9 | 2 4 . 3 Worker 1 | . . . 1 Tunneler 2 | 2 . . . Recycler 3 | 1 1 . 1 Operator 2 | . 1 . 1 Watcher 1 | . 1 . . Swarmer 5 | . 3 . 2 Grunt 9 | . 2 . 7 Duelist 1 | . . . 1 Sentry 2 | . . . 2 Best Kill Streak 11 | 3 4 . 11 Combat Bots Only 9 | . 4 . 9 Max Kills in Single Turn 2 | 1 1 . 2 Gunslinging . | . . . . Exploded . | . . . . Melee . | . . . . Uniques/NPCs Destroyed . | . . . . Combat | -11 -10 -10 -9 -------- Run | Scr Mat Min Mat Damage Taken 1343 | . 247 . 1096 Core 237 | . 57 . 180 Absorbed by Shields . | . . . . Redirected to Shielding 55 | . . . 55 Core Remaining (%) 88 | 100 . 77 . Volleys Fired 80 | 7 22 . 51 Largest 2 | 2 2 . 2 Hottest 60 | 40 60 . 60 Shots Fired 159 | 14 44 . 101 Gun 159 | 14 44 . 101 Cannon . | . . . . Launcher . | . . . . Special . | . . . . Kinetic 138 | 14 30 . 94 Thermal 6 | . . . 6 Explosive . | . . . . Electromagnetic 15 | . 14 . 1 Robot Hit Streak 17 | 8 10 . 17 Robot Miss Streak 3 | 1 3 . 2 Penetration Max . | . . . . Secondary Targets 3 | . 2 . 1 Max Gunslinging Chain 1 | . 1 . 1 Shots Hit Robots 116 | 9 27 . 80 Core Hits 53 | 4 16 . 33 Critical Kills . | . . . . Critical Parts Destroyed . | . . . . Critical Strikes 1 | . . . 1 Destroy 1 | . . . 1 Melee Attacks . | . . . . Impact . | . . . . Slashing . | . . . . Piercing . | . . . . Sneak Attacks . | . . . . Combat Hostiles . | . . . . Follow-up Attacks . | . . . . Damage Inflicted 1317 | 91 277 . 949 Guns 1111 | 91 277 . 743 Cannons . | . . . . Explosions 206 | . . . 206 Melee . | . . . . Ramming . | . . . . Kinetic 942 | 91 182 . 669 Thermal 262 | . . . 262 Explosive . | . . . . Electromagnetic 113 | . 95 . 18 Impact . | . . . . Slashing . | . . . . Piercing . | . . . . Highest Corruption . | . . . . Average Corruption . | . . . . Corruption Purged . | . . . . Corruption Blocked . | . . . . Overload Shots . | . . . . Overflow Damage 121 | . . . 121 Projectiles . | . . . . Explosions 121 | . . . 121 Melee . | . . . . Knockbacks . | . . . . Impact . | . . . . Kinetic . | . . . . Secondary . | . . . . Self-Inflicted Damage 222 | . . . 222 Shots 3 | . . . 3 Rammed . | . . . . Targets Rammed . | . . . . Kicked . | . . . . Crushed . | . . . . Highest Temperature 103 | . 103 . 29 Average Temperature 27 | . 46 . 8 Received Heat Transfer 387 | . 87 . 300 Siege Activations . | . . . . Robots Corrupted . | . . . . Combat Hostiles . | . . . . Parts Fried . | . . . . Impact Corruptions . | . . . . Robots Melted . | . . . . Combat Hostiles . | . . . . Parts Melted . | . . . . Heat Transferred 225 | . . . 225 Parts Sabotaged . | . . . . Parts Stolen . | . . . . Parts Stripped . | . . . . Power Chain Reactions 1 | . . . 1 Missiles Intercepted . | . . . . Alert | -11 -10 -10 -9 ------- Run | Scr Mat Min Mat Peak Influence 294 | 15 294 61 292 Initial 61 | . 9 61 23 Average 139 | 5 196 61 128 Maximum Alert Level 1 | . 1 . 1 Low Security (%) 67 | 100 47 100 75 Level 1 32 | . 52 . 24 Level 2 . | . . . . Level 3 . | . . . . Level 4 . | . . . . Level 5 . | . . . . High Security . | . . . . Max Security . | . . . . Squads Dispatched 6 | . 5 . 1 Investigation 3 | . 3 . . Extermination . | . . . . Reinforcement 3 | . 2 . 1 Assault . | . . . . Garrison . | . . . . Intercept . | . . . . Searches Triggered . | . . . . Construction Impeded . | . . . . Haulers Reinforced . | . . . . Active Scanning Responses . | . . . . Cargo Convoy Interrupts . | . . . . Stealth | -11 -10 -10 -9 --------- Run | Scr Mat Min Mat Distress Signals 2 | . 1 . 1 Communications Jammed . | . . . . Distress Signals . | . . . . Times Spotted 31 | . 15 . 16 Peak Tracking Total 10 | . 7 . 10 Tactical Retreats 2 | . 1 . 1 Traps | -11 -10 -10 -9 ------- Run | Scr Mat Min Mat Traps Triggered . | . . . . Indirectly . | . . . . Trap Hack Attempts . | . . . . Triggered . | . . . . Disarmed . | . . . . Reprogrammed . | . . . . Reused . | . . . . Traps Extracted . | . . . . Installed . | . . . . Triggered . | . . . . Machines | -11 -10 -10 -9 ---------- Run | Scr Mat Min Mat Machines Disabled 3 | . . . 3 Max in Single Turn 2 | . . . 2 Machines Sabotaged . | . . . . Garrisons Compromised . | . . . . Overloaded Fab Kills . | . . . . Hacking | -11 -10 -10 -9 --------- Run | Scr Mat Min Mat Machines Accessed 5 | . 5 . . Terminals 4 | . 4 . . Fabricators . | . . . . Repair Stations . | . . . . Recycling Units 1 | . 1 . . Scanalyzers . | . . . . Garrison Access . | . . . . Total Hacks 14 | . 14 . . Successful 7 | . 7 . . Failed 6 | . 6 . . Catastrophic . | . . . . Database Lockouts 1 | . 1 . . Manual 12 | . 12 . . Terminals 13 | . 13 . . Fabricators . | . . . . Repair Stations . | . . . . Recycling Units 1 | . 1 . . Scanalyzers . | . . . . Garrison Access . | . . . . Terminal Hacks 4 | . 4 . . Robot Analysis 2 | . 2 . . Unreport Threat 1 | . 1 . . Locate Traps 1 | . 1 . . Fabricator Hacks . | . . . . Repair Station Hacks . | . . . . Recycling Unit Hacks . | . . . . Scanalyzer . | . . . . Garrison Access Hacks . | . . . . Unauthorized Hacks 3 | . 3 . . Terminals 2 | . 2 . . Track 1 | . 1 . . Botnet 1 | . 1 . . Fabricators . | . . . . Repair Stations . | . . . . Recycling Units 1 | . 1 . . Tunnel 1 | . 1 . . Scanalyzers . | . . . . Garrison Access . | . . . . Data Cores Recovered . | . . . . Used . | . . . . Hacking Detections 4 | . 4 . . Full Trace Events 3 | . 3 . . Feedback Events . | . . . . Feedback Blocked . | . . . . Robot Schematics Acquired . | . . . . Robots Built . | . . . . Authchips . | . . . . Time . | . . . . Total Robot Build Rating . | . . . . Part Schematics Acquired . | . . . . Parts Built . | . . . . Authchips . | . . . . Time . | . . . . Total Part Build Rating . | . . . . Parts Repaired . | . . . . Time . | . . . . Parts Recycled . | . . . . Recycled Matter . | . . . . Retrieved Matter . | . . . . Retrieved Components . | . . . . Parts Scanalyzed . | . . . . Part Schematics Acquired . | . . . . Parts Damaged . | . . . . Bothacking | -11 -10 -10 -9 ------------ Run | Scr Mat Min Mat Used RIF Installer . | . . . . Robots Hacked . | . . . . Non-combat . | . . . . Combat . | . . . . Robot Hacks Applied . | . . . . Relay Couplers Released . | . . . . Fabnet Peak Effective % . | . . . . Robots Rewired . | . . . . Allies Hacked . | . . . . Hacks Repelled . | . . . . Allies | -11 -10 -10 -9 -------- Run | Scr Mat Min Mat Total Allies . | . . . . Largest Group . | . . . . Highest-Rated Group . | . . . . Highest-Rated Ally . | . . . . Total Orders . | . . . . Ally Attacks . | . . . . Total Damage . | . . . . Kills . | . . . . Allies Corrupted . | . . . . Allies Melted . | . . . . Intel | -11 -10 -10 -9 ------- Run | Scr Mat Min Mat Robot Analysis Total 2 | . 2 . . Derelict Logs Recovered . | . . . . Drone Launches . | . . . . Drone Recoveries . | . . . . Exploration | -11 -10 -10 -9 ------------- Run | Scr Mat Min Mat Turns Passed 636 | 72 307 71 186 Spaces Moved 409 | 46 262 75 26 Core 18 | 18 . . . Treads 2 | . . . 2 Legs . | . . . . Wheels 389 | 28 262 75 24 Hover . | . . . . Flight . | . . . . Fastest Speed 50 | 50 80 95 95 Average Speed 87 | 71 86 95 100 Slowest Speed 160 | 90 105 95 160 Overloaded Moves . | . . . . Propulsion Burnouts . | . . . . Robots Hopped . | . . . . Cave-ins Triggered . | . . . . Exploration Rate (%) 21 | 3 54 21 7 Regions Visited 3 Branch Regions 1 Pre-discovered Areas 1 | . 1 . . Known Exits Taken . | . . . . Unknown Exits Taken 3 | 1 1 1 . Scrap Searched . | . . . . Spaces Dug . | . . . . Terrain Destroyed 49 | . . . 49 Melee . | . . . . Projectile . | . . . . AOE 49 | . . . 49 Terrain Rammed . | . . . . Walls Destroyed . | . . . . Machines Disabled . | . . . . Actions | -11 -10 -10 -9 --------- Run | Scr Mat Min Mat Total 544 | 69 303 74 98 Wait 10 | . 1 . 9 Move 406 | 45 261 74 26 Hop . | . . . . Pick Up 14 | 9 4 . 1 Fast Attach 7 | 5 1 . 1 Attach 11 | 2 1 . 8 Detach 1 | . 1 . . Swap 10 | 1 7 . 2 Drop 5 | . 5 . . Fire 80 | 7 22 . 51 Melee . | . . . . Ram . | . . . . Kick . | . . . . Crush . | . . . . Escape Stasis . | . . . . Rewire . | . . . . Trap . | . . . . Miscellaneous . | . . . . Route ------- -11/Scrapyard -10/Materials (discovered 2 exits: [*Mat] / [*Min]) -10/Mines -9/Materials (discovered 1 exit: [*Sto]) History --------- Turn | Location | Event 16 | -11/Scrapyard | Discovered new exit (range 16) 73 | -11/Scrapyard | Entered Materials 178 | -10/Materials | Discovered new exit (range 10) 333 | -10/Materials | Discovered new exit (range 6) 357 | -10/Materials | Central database locked down 380 | -10/Materials | Entered Mines 396 | -10/Mines | Discovered new exit (range 14) 451 | -10/Mines | Entered Materials 451 | -9/Materials | Evolved 2 slots: Propulsion x1, Utility x1 468 | -9/Materials | Discovered new exit (range 13) 637 | -9/Materials | Self-destructed Last Messages --------------- 00601_ Acquired 49 matter. 00606_ Ion Engine destroyed. 00610_ Lgt. Assault Rifle destroyed. 00612_ G-34 Mercenary destroyed. 00613_ Acquired 33 matter. 00617_ Acquired Sml. Laser. 00620_ Lgt. Treads destroyed. 00625_ Y-45 Defender destroyed. 00629_ Wheel destroyed. 00634_ G-34 Mercenary destroyed. 00637_ Fusion Modulator explodes. 00637_ Destroyed Wheel. 00637_ K-01 Serf destroyed. 00637_ R-06 Scavenger destroyed. 00637_ Fusion Modulator explodes. 00637_ Ion Engine destroyed. 00637_ Destroyed Ion Engine. 00637_ Lgt. Assault Rifle destroyed. 00637_ Destroyed Lgt. Assault Rifle. 00637_ W-16 Scout sends out distress signal. Map ----- +----------------------------------------------------+ | ?????????????????????????????????????????????????? | | ???????????????????????#?????????#???????????????? | | ?????????????????????????????????????????????????? | | ?????????????????????????????????????????????????? | | ?????????????????????????????????????????????????? | | ?????????????????????????????????????????????????? | | ?????????????????????????????????????????????????? | | ???????????#??????????#####??????????????????????? | | ???????????# ?????????# #??????????????????????? | | ???????????# ?????????# #??????????????????????? | | ????#!?????# ?????????# #???? ?????????????????? | | ????#!!!???# ????????# #?? ? ?????????????????? | | ????# ?# ??????#?# #??????????????????????? | | # # ######### #??????????????????????? | | #??????????????????????? | | < #?? ???????????????????? | | ???????####+#### """ #??????????????????????? | | ??????????????## """ #??????????????????????? | | ??????????????## """ ###+########???????????? | | ????? ????????## =*=*=== ??????????? | | ???????????????# %!*[/* ??????????? | | ???????????????# w!!%%= * ??????????? | | ???????????#a### #;;;;;;;;;;##?????????????????? | | ???????????# ; = = ; #??????????????????? | | ?????? ?+ g ; * == ##??????????????????? | | ????????### ; @! #??????????????????? | | ??????????# #??????????????????? | | ??????????# ; #??????????????????? | | ??????????# ; #??????????????????? | | ??????????# #; ; #??????????????????? | | ?????????? #; ; #??????????????????? | | ????????? ## ;##??????????????????? | | ????????"" """ ?#;;;;;;;;;#???????????????????? | | ?????????? ?"" ?### # ###???????????????????? | | ??????????????" ???####?##?????????????????????? | | ???????????????? ???????????????????????????????? | | ?????????????????????????????????????????????????? | | ?????????????????????????????????????????????????? | | ?????????????????????????????????????????????????? | | ?????????????????????????????????????????????????? | | ?????????????????????????????????????????????????? | | ?????????????????????????????????????????????????? | | ?????????????????????????????????????????????????? | | ?????????????????????????????????????????????????? | | ?????????????????????????????????????????????????? | | ?????????????????????????????????????????????????? | | ?????????????????????????????????????????????????? | | ?????????????????????????????????????????????????? | | ?????????????????????????????????????????????????? | | ?????????????????????????????????????????????????? | +----------------------------------------------------+ Best States ------------- Heat Dissipation 28 Energy Generation 10 Energy Capacity 250 Matter Stores 300 Matter Capacity 300 Sight Range 18 Terrain Scan Range 16 Terrain Scan Density 10 Propulsion Shielding 33 Evasion (%) 50 Recoil Reduction 2 Offensive Hacking 10 Item Schematics ----------------- None Robot Schematics ------------------ None Fabricated ------------ Nothing Alien Tech Used ----------------- None Achievements -------------- None Challenges ------------ None Game ------ Seed SuspensionChainInterpreter Manual? 0 Play Time 00:10:50 Cumulative 709.2 hours Start 2022.06.30 @ 17:15:27 End 2022.06.30 @ 17:24:00 Sessions 1 Manual Loads 0 Difficulty Rogue Special Mode None Game No. 374 Rogue 247 Adventurer 125 Explorer 2 Win Type - Total 83 Types 72/4/4/1/1/0/0/0/1 Lore% 81 Gallery% 88 Achievement% 76 Wizard Run 0 Options --------- ASCII 0 Keyboard 1 Movement Numpad Keybinds 0 Fullscreen 1 Font 36/TerminusFine Map View 76x50 Tactical HUD 1 Map Filters NONE Filters NONE Steam 1 RUN: 9fc907a3-1cbd-428d-bea1-7ed8047df49f